bitfinex/quotes_SOLUSD_20240705
["timestamp","ask_amount","ask_price","bid_price","bid_amount"]
[1720217306284,0.17,134.73,134.69,13.51]
[1720217306905,100.0,134.71,134.65,18.5658]
[1720217307088,113.51,134.71,134.66,13.51]
[1720217307412,100.17,134.73,134.68,7.4246]
[1720217307600,113.68,134.73,134.68,20.9346]
[1720217309407,113.68,134.73,134.64,16.5096]
[1720217309408,6.3494,134.75,134.7,13.51]
[1720217309918,6.3494,134.75,134.69,18.5607]
[1720217310091,7.69542548,134.76,134.71,7.4229]
[1720217310592,15.11602548,134.76,134.7,7.4237]
[1720217311119,7.69542548,134.76,134.71,7.4232]
[1720217311290,114.36443415,134.77,134.71,7.4232]
[1720217311491,122.05971492,134.77,134.71,7.4232]
[1720217312205,20.0,134.76,134.71,7.4232]
[1720217312396,20.17,134.76,134.71,7.4232]
[1720217312599,20.17,134.76,134.71,18.5581]
[1720217312797,20.17,134.76,134.71,25.9812]
[1720217314132,20.17,134.76,134.72,7.4227]
[1720217314817,14.63961492,134.77,134.73,18.5547]
[1720217314990,7.78527749,134.78,134.73,18.5547]
[1720217314991,1.41957749,134.78,134.74,7.4212]
[1720217315190,20.72803415,134.81,134.7,61.1896]
[1720217315191,13.31003415,134.81,134.76,7.4202]
[1720217316407,13.31003415,134.81,134.75,25.9731]
[1720217316615,0.17,134.8,134.75,25.9731]
[1720217316820,13.31003415,134.81,134.76,7.4204]
[1720217317028,100.0,134.8,134.75,25.9731]
[1720217317217,20.72793415,134.81,134.75,25.9731]
[1720217317721,100.0,134.79,134.72,18.5559]
[1720217317921,100.0,134.79,134.7,53.6272]
[1720217317922,100.0,134.77,134.71,7.4228]
[1720217318310,0.17,134.76,134.72,7.4226]
[1720217318497,0.17,134.77,134.73,7.4219]
[1720217318704,20.17,134.78,134.74,7.4215]
[1720217319125,20.17,134.78,134.75,7.4211]
[1720217319420,20.0,134.8,134.75,7.4211]
[1720217319734,0.17,134.79,134.75,7.4211]
[1720217320601,0.17,134.79,134.74,7.4215]
[1720217320937,100.0,134.78,134.73,25.9772]
[1720217321223,0.17,134.77,134.73,25.9772]
[1720217323134,0.17,134.77,134.74,7.4216]
[1720217324206,0.17,134.78,134.74,7.4216]
[1720217324936,0.17,134.78,134.74,7.4214]
[1720217325107,0.17,134.78,134.73,25.9771]
[1720217326544,7.86203498,134.78,134.73,18.5551]
[1720217327039,6.3657,134.81,134.75,18.5522]
[1720217327834,6.3657,134.81,134.77,7.4198]
[1720217328224,106.3657,134.81,134.77,7.4198]
[1720217328521,106.3657,134.81,134.75,18.5522]
[1720217328522,106.3657,134.81,134.76,7.4203]
[1720217329229,0.17,134.8,134.76,7.4203]
[1720217331836,6.3657,134.81,134.78,7.4193]
[1720217332129,123.83899993,134.83,134.78,7.4193]
[1720217332336,116.1477,134.83,134.77,25.9687]
[1720217332909,16.1477,134.83,134.77,18.5489]
[1720217333114,16.1477,134.83,134.79,7.4188]
[1720217333331,6.2969,134.84,134.79,18.5461]
[1720217334409,6.2969,134.84,134.79,25.9648]
[1720217335330,0.17,134.83,134.79,25.9648]
[1720217338039,0.17,134.83,134.78,7.4194]
[1720217338737,107.5868,134.83,134.77,23.845]
[1720217339047,107.4182,134.81,134.75,7.4207]
[1720217339231,0.17,134.8,134.75,7.4207]
[1720217339633,0.17,134.8,134.76,7.4204]
[1720217339951,0.17,134.8,134.76,20.9004]
[1720217340323,0.17,134.8,134.77,13.48]
[1720217340537,6.2969,134.84,134.78,13.48]
[1720217340745,20.0,134.83,134.8,13.48]
[1720217341132,6.2969,134.84,134.8,13.48]
[1720217341524,6.2969,134.84,134.8,20.8983]
[1720217341731,6.2969,134.84,134.8,7.4183]
[1720217342420,0.17,134.83,134.8,7.4183]
[1720217343040,6.2969,134.84,134.8,7.4183]
[1720217343925,0.17,134.83,134.79,25.9659]
[1720217344124,100.17,134.83,134.76,45.4904]
[1720217344328,100.0,134.81,134.76,25.9708]
[1720217344643,0.17,134.8,134.76,25.9708]
[1720217347253,0.17,134.8,134.77,7.42]
[1720217347632,100.0,134.79,134.76,18.5504]
[1720217347833,0.17,134.78,134.76,18.5504]
[1720217349527,100.17,134.78,134.73,25.9764]
[1720217350054,100.17,134.78,134.74,7.4216]
[1720217350841,100.17,134.78,134.73,25.9767]
[1720217353057,100.0,134.74,134.7,25.9827]
[1720217353556,0.17,134.73,134.7,25.9827]
[1720217354447,0.17,134.73,134.71,7.4232]
[1720217354657,115.7019,134.76,134.71,7.4232]
[1720217354835,100.0,134.74,134.7,25.9824]
[1720217355035,0.17,134.73,134.71,7.4231]
[1720217355236,7.86782528,134.75,134.71,7.4231]
[1720217356767,7.86782528,134.75,134.72,25.9794]
[1720217357054,0.17,134.75,134.72,18.5568]
[1720217357561,0.17,134.75,134.71,7.4231]
[1720217358258,7.69750669,134.77,134.72,7.4227]
[1720217358451,20.0,134.76,134.72,7.4227]
[1720217362347,0.17,134.75,134.71,25.9813]
[1720217362751,0.17,134.75,134.71,18.5581]
[1720217362941,0.17,134.75,134.71,25.9813]
[1720217363144,0.17,134.75,134.71,18.5581]
[1720217363866,0.17,134.75,134.71,32.0481]
[1720217364866,0.17,134.75,134.71,39.4714]
[1720217365365,20.0,134.76,134.73,7.4222]
[1720217365766,0.17,134.77,134.73,7.4222]
[1720217366151,0.17,134.76,134.73,13.49]
[1720217366940,0.17,134.77,134.73,13.49]
[1720217367356,20.0,134.78,134.73,20.9121]
[1720217367557,20.0,134.78,134.73,13.49]
[1720217367765,33.49,134.78,134.73,13.49]
[1720217368040,13.49,134.78,134.73,20.9119]
[1720217368455,150.3380395,134.79,134.74,13.49]
[1720217368954,0.17,134.78,134.74,13.49]
[1720217369344,33.66,134.78,134.73,20.9119]
[1720217370261,20.17,134.78,134.73,20.9119]
[1720217371357,100.0,134.77,134.73,13.49]
[1720217371560,0.17,134.76,134.73,13.49]
[1720217371871,0.17,134.76,134.7,13.49]
[1720217371872,20.9113,134.75,134.7,13.49]
[1720217372072,0.17,134.74,134.7,13.49]
[1720217372243,0.17,134.74,134.71,13.49]
[1720217372767,27.4198,134.78,134.72,20.9124]
[1720217372942,13.66,134.77,134.72,20.9124]
[1720217373141,20.0,134.76,134.72,20.9124]
[1720217373358,0.17,134.75,134.72,13.49]
[1720217375471,0.17,134.75,134.7,39.4721]
[1720217376865,0.17,134.75,134.7,25.9821]
[1720217377049,0.17,134.75,134.7,39.4721]
[1720217377442,0.17,134.75,134.7,25.9821]
[1720217377646,0.17,134.75,134.71,13.49]
[1720217380180,0.17,134.75,134.71,20.9132]
[1720217380678,100.17,134.75,134.71,13.49]
[1720217380861,0.17,134.75,134.71,13.49]
[1720217382852,100.0,134.74,134.69,7.4243]
[1720217383058,20.1552,134.73,134.68,20.9145]
[1720217383653,20.1552,134.73,134.69,7.4242]
[1720217386478,20.1552,134.73,134.7,7.4239]
[1720217386684,6.6652,134.73,134.7,7.4239]
[1720217386884,7.70002816,134.74,134.71,18.5582]
[1720217387066,39.8569,134.76,134.71,32.0482]
[1720217387269,7.69907207,134.75,134.71,32.0482]
[1720217387689,7.69907207,134.75,134.72,7.4228]
[1720217388057,26.3669,134.76,134.73,18.5554]
[1720217389383,26.3669,134.76,134.73,25.9774]
[1720217393196,6.4413,134.81,134.75,13.49]
[1720217393492,16.0437,134.82,134.78,13.49]
[1720217393792,3.86194249,134.83,134.8,13.49]
[1720217394575,3.86194249,134.83,134.79,7.4186]
[1720217394887,23.86194249,134.83,134.79,7.4186]
[1720217396371,23.86194249,134.83,134.77,35.0367]
[1720217396579,0.17,134.82,134.78,7.4193]
[1720217398598,0.17,134.82,134.77,35.0367]
[1720217398599,0.17,134.82,134.79,7.4189]
[1720217399570,0.17,134.82,134.78,7.4192]
[1720217400307,0.17,134.82,134.79,7.4188]
[1720217401010,7.76365719,134.84,134.77,16.4868]
[1720217401303,6.4413,134.87,134.83,13.49]
[1720217401518,6.4413,134.87,134.84,13.49]
[1720217401673,6.4413,134.87,134.83,18.5412]
[1720217401874,24.00469568,134.89,134.85,13.49]
[1720217402399,100.0,134.88,134.83,25.9577]
[1720217402602,24.00469568,134.89,134.83,25.9577]
[1720217402603,24.00469568,134.89,134.83,32.0312]
[1720217402902,44.90819568,134.89,134.84,13.49]
[1720217403127,113.49,134.86,134.8,18.545]
[1720217403401,13.49,134.87,134.81,13.49]
[1720217403605,100.0,134.88,134.83,13.49]
[1720217403816,100.0,134.88,134.82,18.5428]
[1720217403817,0.17,134.87,134.82,18.5428]
[1720217403979,24.00469568,134.89,134.85,13.49]
[1720217404179,24.00469568,134.89,134.82,13.49]
[1720217404180,16.2437,134.89,134.86,13.49]
[1720217404411,16.2437,134.89,134.86,39.4421]
[1720217404982,0.2,134.89,134.88,20.9039]
[1720217405514,0.2,134.89,134.88,7.4139]
[1720217405689,0.2,134.89,134.88,20.9039]
[1720217407779,0.2,134.89,134.88,7.4139]
[1720217408389,0.2,134.89,134.86,25.9521]
[1720217408715,100.0,134.88,134.83,18.5409]
[1720217408892,0.17,134.87,134.83,18.5409]
[1720217409282,6.1785,134.88,134.85,18.5386]
[1720217409709,6.1785,134.88,134.86,7.4145]
[1720217409904,0.2,134.89,134.87,18.536]
[1720217410606,0.2,134.89,134.87,25.9503]
[1720217410988,0.2,134.89,134.88,7.4139]
[1720217411189,0.2,134.89,134.87,25.9504]
[1720217411515,0.2,134.89,134.88,7.4139]
[1720217411694,0.2,134.89,134.85,7.4152]
[1720217412206,0.2,134.89,134.84,18.5394]
[1720217412407,0.2,134.89,134.86,18.5371]
[1720217413119,0.2,134.89,134.86,25.9517]
[1720217413500,0.2,134.89,134.88,7.4139]
[1720217418704,100.2,134.99,134.88,81.6577]
[1720217418903,0.2,134.99,134.95,7.41]
[1720217419199,100.0,134.98,134.93,18.5267]
[1720217419795,107.4086,134.98,134.93,18.5267]
[1720217419997,7.4126,134.91,134.84,7.4158]
[1720217420222,6.3841,134.94,134.88,7.4139]
[1720217420223,106.3841,134.94,134.88,7.4139]
[1720217420414,100.0,134.92,134.88,25.9485]
[1720217420721,0.17,134.91,134.88,25.9485]
[1720217421027,100.0,134.92,134.87,7.4143]
[1720217421444,0.17,134.91,134.87,7.4143]
[1720217423601,0.17,134.91,134.86,7.415]
[1720217423918,6.3841,134.89,134.85,25.9534]
[1720217424127,100.17,134.88,134.83,7.4161]
[1720217424720,100.17,134.88,134.84,7.4159]
[1720217425519,100.17,134.88,134.83,7.4166]
[1720217427003,100.17,134.88,134.82,25.9593]
[1720217427613,100.17,134.88,134.83,7.4166]
[1720217428942,100.17,134.88,134.84,7.4161]
[1720217429231,0.17,134.88,134.85,7.4156]
[1720217429526,0.17,134.88,134.86,7.415]
[1720217430998,0.17,134.88,134.85,7.4155]
[1720217432231,0.17,134.88,134.84,25.9561]
[1720217433633,0.17,134.88,134.85,7.4156]
[1720217434537,0.17,134.88,134.84,25.956]
[1720217435703,0.17,134.88,134.84,39.416]
[1720217435923,0.17,134.88,134.84,32.0]
[1720217436232,0.17,134.88,134.85,7.4156]
[1720217436534,0.17,134.88,134.85,20.8756]
[1720217438309,0.17,134.88,134.85,7.4156]
[1720217438944,6.3841,134.89,134.86,18.5374]
[1720217439238,27.44467382,134.92,134.87,13.46]
[1720217439413,20.0,134.91,134.87,13.46]
[1720217439617,20.0,134.91,134.87,20.8744]
[1720217440333,0.17,134.9,134.87,20.8744]
[1720217441233,0.17,134.91,134.87,20.8744]
[1720217441413,6.2299,134.92,134.88,20.8738]
[1720217442809,13.46,134.93,134.9,7.4127]
[1720217443010,19.6899,134.96,134.91,20.8722]
[1720217443227,119.6899,134.96,134.91,20.8722]
[1720217443436,127.0996,134.96,134.9,25.9446]
[1720217443619,127.0996,134.96,134.9,39.4046]
[1720217443815,127.0996,134.96,134.91,13.46]
[1720217444343,119.6899,134.96,134.91,13.46]
[1720217444654,19.6899,134.96,134.91,13.46]
[1720217444827,0.17,134.95,134.91,13.46]
[1720217445213,0.17,134.95,134.91,20.8722]
[1720217447150,13.63,134.95,134.91,7.4122]
[1720217447642,0.17,134.95,134.91,7.4122]
[1720217448020,13.63,134.95,134.91,7.4122]
[1720217448443,0.17,134.95,134.92,7.4117]
[1720217448740,13.63,134.95,134.92,7.4117]
[1720217449153,0.17,134.95,134.92,7.4117]
[1720217453148,0.17,134.95,134.93,7.4111]
[1720217453354,6.2299,134.96,134.94,7.4107]
[1720217453758,0.2,134.99,134.94,31.9861]
[1720217453925,20.2,134.99,134.94,31.9861]
[1720217454418,20.2,134.99,134.96,7.4091]
[1720217454618,20.2,134.99,134.94,39.3966]
[1720217454850,20.2,134.99,134.95,13.46]
[1720217455053,0.17,134.98,134.94,25.9366]
[1720217455352,0.17,134.98,134.94,39.3966]
[1720217455859,0.17,134.98,134.95,7.41]
[1720217456627,0.17,134.98,134.95,20.87]
[1720217457057,100.17,134.98,134.94,39.3966]
[1720217458047,107.4096,134.96,134.91,18.5296]
[1720217458352,0.17,134.95,134.91,31.9896]
[1720217458553,0.17,134.95,134.91,39.4015]
[1720217458733,0.17,134.95,134.92,7.4116]
[1720217459343,0.17,134.95,134.93,7.4111]
[1720217459655,100.0,134.96,134.92,20.8716]
[1720217459953,0.17,134.95,134.92,20.8716]
[1720217461326,0.17,134.95,134.93,7.4111]
[1720217461555,27.6081,134.99,134.91,18.5296]
[1720217461556,113.63,134.96,134.91,18.5296]
[1720217461755,35.5275,134.95,134.91,25.9417]
[1720217461939,0.17,134.94,134.92,7.4117]
[1720217462555,0.17,134.94,134.91,25.9417]
[1720217462870,100.17,134.94,134.91,25.9417]
[1720217463866,100.17,134.94,134.92,7.4117]
[1720217464484,0.17,134.94,134.92,7.4117]
[1720217464646,100.17,134.94,134.92,7.4117]
[1720217464838,100.0,134.92,134.88,18.5344]
[1720217465043,13.63,134.91,134.88,18.5344]
[1720217465297,13.63,134.91,134.87,7.4141]
[1720217465948,119.6661,134.9,134.85,31.998]
[1720217466148,0.17,134.89,134.85,25.9531]
[1720217466350,13.63,134.89,134.85,25.9531]
[1720217467045,13.63,134.89,134.86,7.415]
[1720217467586,129.2503,134.88,134.85,18.538]
[1720217467876,0.17,134.87,134.85,25.9535]
[1720217469487,0.17,134.87,134.86,7.415]
[1720217469954,0.17,134.87,134.85,39.4135]
[1720217470673,0.17,134.87,134.85,31.998]
[1720217470857,0.17,134.87,134.85,39.4136]
[1720217471992,0.17,134.87,134.85,25.9536]
[1720217472289,0.17,134.88,134.85,25.9536]
[1720217472460,100.17,134.88,134.82,18.5422]
[1720217472665,13.46,134.87,134.82,39.4194]
[1720217472891,0.17,134.86,134.82,25.9594]
[1720217473101,100.17,134.86,134.82,25.9594]
[1720217473396,113.63,134.86,134.82,18.5422]
[1720217473754,113.63,134.86,134.82,25.9593]
[1720217476159,113.63,134.86,134.83,7.4167]
[1720217476557,113.46,134.84,134.79,25.9647]
[1720217476761,113.46,134.84,134.74,52.8262]
[1720217476762,113.46,134.82,134.77,20.8796]
[1720217476988,13.63,134.81,134.77,7.4196]
[1720217477292,13.63,134.81,134.78,7.4194]
[1720217477877,0.17,134.81,134.79,7.4189]
[1720217479387,0.17,134.81,134.78,18.5485]
[1720217479590,20.17,134.81,134.75,18.5518]
[1720217479794,100.0,134.8,134.75,18.5518]
[1720217479978,0.17,134.79,134.75,18.5518]
[1720217480600,0.17,134.79,134.75,25.9725]
[1720217481203,100.0,134.78,134.75,25.9725]
[1720217481391,100.0,134.78,134.72,18.5558]
[1720217481392,100.0,134.76,134.72,18.5558]
[1720217481589,115.7903,134.76,134.72,18.5558]
[1720217481905,0.17,134.75,134.72,18.5558]
[1720217482773,0.17,134.75,134.72,25.9785]
[1720217483201,0.17,134.75,134.71,7.4232]
[1720217485973,115.7903,134.79,134.68,42.6779]
[1720217486178,35.7903,134.79,134.76,7.4204]
[1720217486503,6.114,134.8,134.78,7.4194]
[1720217487175,6.114,134.8,134.77,7.4199]
[1720217488005,100.0,134.79,134.76,18.5505]
[1720217488317,0.17,134.78,134.76,18.5505]
[1720217488688,0.17,134.78,134.76,25.971]
[1720217489185,0.17,134.79,134.76,25.971]
[1720217491617,0.17,134.79,134.76,18.5505]
[1720217493486,0.17,134.79,134.77,7.42]
[1720217493883,0.17,134.79,134.76,25.9709]
[1720217494486,20.0,134.82,134.77,7.4199]
[1720217494913,27.4173,134.82,134.76,25.9708]
[1720217495505,20.0,134.82,134.77,7.42]
[1720217495813,0.17,134.81,134.77,7.42]
[1720217496884,6.4412,134.83,134.78,7.4191]
[1720217497079,15.7903,134.84,134.79,7.4188]
[1720217497321,15.7903,134.84,134.8,18.5454]
[1720217497624,15.7903,134.84,134.8,25.9635]
[1720217498189,8.36391164,134.85,134.8,25.9635]
[1720217499284,0.17,134.84,134.81,7.4176]
[1720217499506,0.17,134.85,134.81,7.4176]
[1720217500511,100.17,134.85,134.8,25.9636]
[1720217500911,0.17,134.85,134.8,25.9636]
[1720217502324,23.0531,134.91,134.86,7.415]
[1720217503314,23.0531,134.91,134.85,7.4154]
[1720217503818,0.17,134.9,134.85,7.4154]
[1720217504195,7.74606874,134.92,134.86,18.5373]
[1720217504412,106.4412,134.94,134.86,18.5373]
[1720217504791,7.74524321,134.93,134.86,18.5373]
[1720217505337,7.74524321,134.93,134.88,7.4139]
[1720217505489,0.17,134.92,134.88,7.4139]
[1720217505690,7.74524321,134.93,134.88,7.4139]
[1720217506621,113.8522,134.94,134.88,7.4139]
[1720217507512,20.17,134.93,134.88,7.4139]
[1720217507712,100.0,134.92,134.86,18.5373]
[1720217507922,0.17,134.91,134.86,18.5373]
[1720217508314,0.17,134.91,134.86,25.952]
[1720217508521,0.17,134.91,134.87,7.4143]
[1720217509220,0.17,134.91,134.87,6.9143]
[1720217510824,0.17,134.91,134.86,18.5373]
[1720217511123,0.17,134.91,134.86,25.9522]
[1720217511623,0.17,134.91,134.87,7.4145]
[1720217514030,6.1882,134.88,134.83,25.957]
[1720217514324,0.17,134.87,134.83,18.5408]
[1720217514626,0.17,134.87,134.85,7.4155]
[1720217515008,0.17,134.87,134.84,7.416]
[1720217515214,0.17,134.87,134.85,7.4156]
[1720217516635,0.17,134.87,134.84,7.4159]
[1720217519342,0.17,134.87,134.85,7.4155]
[1720217521623,0.17,134.87,134.84,7.4159]
[1720217525541,100.17,134.87,134.84,7.4159]
[1720217525918,113.64,134.87,134.84,7.4159]
[1720217526952,13.47,134.86,134.81,37.0872]
[1720217527123,13.64,134.85,134.82,7.4169]
[1720217527449,0.17,134.84,134.82,7.4169]
[1720217528020,0.17,134.84,134.82,25.96]
[1720217528345,0.17,134.84,134.83,7.4167]
[1720217529221,0.17,134.84,134.82,25.96]
[1720217529439,13.47,134.86,134.82,25.96]
[1720217529440,0.17,134.85,134.82,25.96]
[1720217530851,33.64,134.86,134.82,25.96]
[1720217531432,20.17,134.86,134.82,18.5431]
[1720217531620,100.0,134.85,134.82,18.5431]
[1720217531820,0.17,134.84,134.82,18.5431]
[1720217533346,0.17,134.84,134.81,7.4178]
[1720217533851,0.17,134.84,134.8,13.47]
[1720217534032,13.64,134.84,134.79,39.4345]
[1720217534424,0.17,134.84,134.79,18.5461]
[1720217534631,0.17,134.84,134.81,7.4178]
[1720217534837,13.64,134.84,134.8,7.4181]
[1720217535246,0.17,134.84,134.81,7.4176]
[1720217535760,0.17,134.84,134.8,20.8881]
[1720217536048,0.17,134.84,134.8,7.4181]
[1720217536250,13.64,134.84,134.8,7.4181]
[1720217537343,0.17,134.84,134.81,7.4177]
[1720217538245,13.64,134.84,134.81,7.4177]
[1720217540154,13.64,134.84,134.8,7.4182]
[1720217540454,13.64,134.84,134.81,7.4178]
[1720217542755,0.17,134.84,134.81,7.4178]
[1720217543733,0.17,134.84,134.82,7.4172]
[1720217544132,0.17,134.84,134.81,25.9619]
[1720217545463,0.17,134.84,134.81,18.5442]
[1720217545754,113.47,134.82,134.77,7.4198]
[1720217546056,13.47,134.81,134.77,7.4198]
[1720217546259,13.64,134.81,134.77,7.4198]
[1720217547736,13.47,134.8,134.77,7.4198]
[1720217547938,0.17,134.79,134.77,7.4198]
[1720217548142,13.64,134.81,134.78,7.4194]
[1720217549263,13.64,134.81,134.77,25.9697]
[1720217549545,0.17,134.81,134.77,25.9697]
[1720217549753,0.17,134.81,134.78,20.8894]
[1720217552643,0.17,134.81,134.78,13.47]
[1720217556965,0.17,134.81,134.77,39.4397]
[1720217559463,0.17,134.81,134.77,32.0199]
[1720217560354,0.17,134.81,134.77,39.4399]
[1720217560553,6.1426,134.83,134.8,7.4179]
[1720217560745,6.1426,134.83,134.79,32.0165]
[1720217560936,19.6126,134.83,134.79,18.5465]
[1720217561543,6.1426,134.83,134.79,25.9654]
[1720217561882,0.17,134.82,134.79,25.9654]
[1720217562273,0.17,134.82,134.8,7.4183]
[1720217562479,6.1426,134.83,134.81,7.4177]
[1720217563056,7.75760357,134.85,134.8,13.47]
[1720217563267,7.75760357,134.85,134.83,13.47]
[1720217563561,6.4091,134.87,134.84,7.4161]
[1720217563769,100.0,134.88,134.84,7.4161]
[1720217563985,100.0,134.88,134.83,20.8865]
[1720217564298,100.0,134.88,134.84,13.47]
[1720217564579,20.0,134.87,134.84,13.47]
[1720217564767,20.0,134.87,134.82,18.5432]
[1720217564964,0.17,134.86,134.83,13.47]
[1720217566379,0.17,134.86,134.83,20.8866]
[1720217566991,20.0,134.87,134.83,20.8866]
[1720217570063,20.0,134.87,134.83,13.47]
[1720217570263,0.17,134.86,134.83,13.47]
[1720217570561,0.17,134.86,134.82,39.4304]
[1720217570784,0.17,134.86,134.83,13.47]
[1720217571877,100.0,134.85,134.8,7.4178]
[1720217572182,0.17,134.84,134.81,13.47]
[1720217572362,0.17,134.84,134.81,20.8878]
[1720217572778,0.17,134.85,134.81,20.8878]
[1720217573656,0.17,134.85,134.82,7.4171]
[1720217574284,0.17,134.85,134.81,39.4317]
[1720217575791,0.17,134.85,134.81,25.9617]
[1720217575961,0.17,134.85,134.81,39.4317]
[1720217576486,0.17,134.85,134.82,7.4172]
[1720217577788,0.17,134.85,134.81,18.5441]
[1720217577984,0.17,134.85,134.81,39.4318]
[1720217578154,100.0,134.84,134.79,7.4185]
[1720217578361,0.17,134.83,134.79,20.8885]
[1720217578857,0.17,134.83,134.8,7.4183]
[1720217580407,0.17,134.83,134.81,7.4177]
[1720217581889,0.17,134.84,134.81,7.4177]
[1720217582587,0.17,134.84,134.81,20.8877]
[1720217583794,0.17,134.84,134.81,13.47]
[1720217584379,0.17,134.84,134.8,39.4339]
[1720217587301,0.17,134.84,134.8,25.9639]
[1720217587503,0.17,134.84,134.8,39.4339]
[1720217596415,0.17,134.84,134.8,32.0157]
[1720217598903,0.17,134.84,134.8,39.434]
[1720217599108,0.17,134.84,134.81,7.4177]
[1720217599338,0.17,134.84,134.8,39.4339]
[1720217599706,0.17,134.84,134.8,32.0157]
[1720217603545,0.17,134.84,134.8,18.5457]
[1720217603830,0.17,134.84,134.8,32.0157]
[1720217605008,0.17,134.84,134.8,39.434]
[1720217607210,0.17,134.84,134.81,7.4177]
[1720217607434,20.17,134.85,134.82,13.47]
[1720217615640,20.17,134.85,134.8,25.9639]
[1720217615825,20.17,134.85,134.81,13.47]
[1720217616234,27.5857,134.85,134.81,13.47]
[1720217619244,7.4167,134.83,134.78,7.4194]
[1720217619434,7.4181,134.81,134.75,23.0164]
[1720217619631,121.0573,134.82,134.76,7.4205]
[1720217619844,121.0573,134.82,134.77,13.47]
[1720217620146,7.5873,134.82,134.78,13.47]
[1720217620452,0.17,134.82,134.78,13.47]
[1720217621628,100.17,134.82,134.77,7.4199]
[1720217621835,121.0573,134.82,134.77,13.47]
[1720217623051,113.64,134.82,134.77,20.8899]
[1720217624662,6.2335,134.81,134.77,20.8899]
[1720217626324,0.17,134.8,134.77,7.4199]
[1720217628241,0.17,134.8,134.78,7.4192]
[1720217628446,6.2335,134.81,134.78,20.8892]
[1720217628759,6.2335,134.81,134.79,20.8889]
[1720217628963,6.2335,134.81,134.79,7.4189]
[1720217629266,6.2335,134.81,134.78,39.4377]
[1720217629475,6.2335,134.81,134.78,25.9677]
[1720217630380,6.2335,134.81,134.78,39.4377]
[1720217630584,7.75980724,134.82,134.8,18.5447]
[1720217630878,6.0476,134.85,134.82,7.4171]
[1720217631054,6.0476,134.85,134.82,20.8871]
[1720217632781,100.0,134.84,134.8,39.433]
[1720217633078,100.17,134.84,134.8,39.433]
[1720217633582,0.17,134.84,134.81,13.47]
[1720217634262,0.17,134.84,134.8,32.0147]
[1720217634458,0.17,134.84,134.81,7.4177]
[1720217635085,0.17,134.84,134.82,7.4171]
[1720217636779,0.17,134.84,134.82,20.8871]
[1720217636963,0.17,134.84,134.82,13.47]
[1720217637269,0.17,134.84,134.81,20.8876]
[1720217638566,0.17,134.84,134.81,7.4176]
[1720217638782,0.17,134.84,134.81,20.8876]
[1720217643258,0.17,134.84,134.82,7.417]
[1720217646390,0.17,134.84,134.81,7.4176]
[1720217649199,0.17,134.84,134.8,32.0147]
[1720217649380,113.47,134.82,134.78,7.4194]